[Event "Fagernes Open 2019"]
[Site "Fagernes"]
[Date "2019.04.15"]
[Round "2.30"]
[White "Mansoor, Afras"]
[Black "Ranby, Hans"]
[Result "1-0"]
[ECO "A16"]
[WhiteElo "1965"]
[BlackElo "1787"]
[Annotator "NA"]
[PlyCount "65"]
[EventDate "2019.04.14"]
[EventType "swiss"]
[EventCountry "NOR"]
[SourceTitle "playchess.com"]
[Source "ChessBase"]
[SourceQuality "1"]
[TimeControl "40/7200:3600"]

1. c4 {[%emt 0:00:03]} Nf6 {[%emt 0:00:09]} 2. Nc3 {[%emt 0:00:06]} b6 {[%emt 0:00:12]} 3. e4 {[%emt 0:00:05]} e5 4. Nf3 {[%emt 0:03:06]} Bb7 {[%emt 0:02:55]} 5. d3 {[%emt 0:00:39]} Nc6 {[%emt 0:00:00]} 6. g3 {[%emt 0:00:00]} Be7 {[%emt 0:00:00]} 7. Bg2 {[%emt 0:00:00]} O-O {[%emt 0:00:20]} 8. O-O {[%emt 0:00:07]} d6 {[%emt 0:01:08]} 9. Bh3 {[%emt 0:21:10]} Nd4 {[%emt 0:03:21]} 10. Nxd4 {[%emt 0:00:00]} exd4 {[%emt 0:00:00]} 11. Ne2 {[%emt 0:06:37]} c5 {[%emt 0:01:16]} 12. f4 {[%emt 0:01:49]} Qc7 {[%emt 0:04:07]} 13. g4 {[%emt 0:04:29]} Rfe8 {[%emt 0:13:53]} 14. g5 {[%emt 0:00:00]} Nd7 {[%emt 0:00:00]} 15. Ng3 {[%emt 0:00:00]} Rad8 {[%emt 0:00:00]} 16. Bd2 $16 {[%emt 0:00:00]} Qc6 {[%emt 0:00:00]} 17. Rf2 {[%emt 0:00:00]} b5 {[%emt 0:00:00]} 18. b3 {[%emt 0:00:00]} bxc4 {[%emt 0:00:00]} 19. bxc4 {[%emt 0:00:00]} Ba8 {[%emt 0:00:00]} 20. Qh5 {[%emt 0:41:38]} Rb8 {[%emt 0:30:03]} 21. Raf1 {[%emt 0:08:16]} Rb2 {[%emt 0:06:34]} 22. Be6 {[%emt 0:03:01]} Rf8 {[%emt 0:04:56]} 23. Nf5 {[%emt 0:01:23]} Bd8 {[%emt 0:01:40]} 24. Bd5 {[%emt 0:01:02]} Qc8 {[%emt 0:06:45]} 25. Nxd6 {[%emt 0:00:30]} Qb8 {[%emt 0:03:56]} 26. Bxf7+ {[%emt 0:01:14]} Kh8 {[%emt 0:01:51]} 27. Bg6 {[%emt 0:01:04]} h6 {[%emt 0:02:01]} 28. gxh6 {[%emt 0:00:32]} Qxd6 {[%emt 0:02:59]} 29. hxg7+ {[%emt 0:00:05]} Kxg7 {[%emt 0:00:54]} 30. Qh7+ {[%emt 0:00:09]} Kf6 {[%emt 0:00:36]} 31. e5+ {[%emt 0:00:05]} Nxe5 {[%emt 0:01:35]} 32. fxe5+ {[%emt 0:00:05]} Kxe5 {[%emt 0:00:53]} 33. Re1+ {[%emt 0:00:10]} 1-0

[Event "Fagernes Open 2019"]
[Site "Fagernes"]
[Date "2019.04.16"]
[Round "3.27"]
[White "Gundersen, Ingvar"]
[Black "Rasmussen, Jonas H"]
[Result "0-1"]
[ECO "C54"]
[WhiteElo "1896"]
[BlackElo "1993"]
[Annotator "NA"]
[PlyCount "80"]
[EventDate "2019.04.14"]
[EventType "swiss"]
[EventCountry "NOR"]
[SourceTitle "playchess.com"]
[Source "ChessBase"]
[SourceQuality "1"]
[TimeControl "40/7200:3600"]

1. e4 {[%emt 0:00:04]} e5 {[%emt 0:00:05]} 2. Nf3 {[%emt 0:00:47]} Nc6 {[%emt 0:00:06]} 3. d4 {[%emt 0:00:03]} exd4 {[%emt 0:00:20]} 4. Bc4 {[%emt 0:00:08]} Bc5 {[%emt 0:00:13]} 5. c3 {[%emt 0:00:07]} Nf6 {[%emt 0:01:07]} 6. e5 {[%emt 0:01:21]} d5 {[%emt 0:01:43]} 7. Bb5 {[%emt 0:00:08]} Ne4 {[%emt 0:07:36]} 8. Bxc6+ {[%emt 0:02:37]} bxc6 {[%emt 0:00:12]} 9. cxd4 {[%emt 0:00:11]} Bb4+ {[%emt 0:01:22]} 10. Nbd2 {[%emt 0:00:25]} O-O {[%emt 0:03:46]} 11. O-O {[%emt 0:00:43]} Bg4 {[%emt 0:05:10]} 12. Qc2 {[%emt 0:02:10]} Nxd2 {[%emt 0:04:30]} 13. Nxd2 {[%emt 0:02:30]} Qd7 {[%emt 0:00:13]} 14. Nb3 {[%emt 0:00:44]} Bf5 {[%emt 0:02:22]} 15. Qd1 {[%emt 0:01:28]} Be4 {[%emt 0:03:36]} 16. f3 {[%emt 0:05:05]} Bg6 {[%emt 0:00:34]} 17. a3 {[%emt 0:00:25]} Be7 {[%emt 0:01:05]} 18. Be3 {[%emt 0:04:19]} Rab8 {[%emt 0:02:47]} 19. Rc1 {[%emt 0:00:53]} Rb5 {[%emt 0:03:22]} 20. a4 {[%emt 0:11:35]} Rb6 {[%emt 0:02:39]} 21. Na5 {[%emt 0:12:09]} Bb4 {[%emt 0:02:33]} 22. Bd2 {[%emt 0:04:49]} Bxa5 {[%emt 0:07:49]} 23. Bxa5 {[%emt 0:01:02]} Rxb2 {[%emt 0:00:12]} 24. Qe1 {[%emt 0:08:02]} Rfb8 {[%emt 0:06:49]} 25. Qc3 {[%emt 0:04:00]} h6 {[%emt 0:01:32]} 26. Qxc6 {[%emt 0:01:56]} Qxc6 {[%emt 0:02:44]} 27. Rxc6 {[%emt 0:03:53]} Ra2 {[%emt 0:00:31]} 28. e6 {[%emt 0:04:32]} fxe6 {[%emt 0:06:28]} 29. Rxe6 {[%emt 0:02:18]} Bf5 {[%emt 0:00:43]} 30. Re7 {[%emt 0:02:41]} Rbb2 {[%emt 0:00:13]} 31. Bxc7 {[%emt 0:00:39]} Rxg2+ {[%emt 0:02:19]} 32. Kh1 {[%emt 0:03:14]} Bh3 {[%emt 0:02:47]} 33. Rg1 {[%emt 0:11:21]} Kf8 {[%emt 0:13:18]} 34. Ree1 {[%emt 0:10:38]} Rgc2 {[%emt 0:12:57]} 35. Bd6+ {[%emt 0:01:05]} Kg8 {[%emt 0:00:12]} 36. Re8+ {[%emt 0:02:30]} Kh7 {[%emt 0:00:25]} 37. Rb1 {[%emt 0:06:12]} Bg2+ {[%emt 0:00:37]} 38. Kg1 {[%emt 0:00:14]} Bxf3 {[%emt 0:00:06]} 39. Bg3 {[%emt 0:01:39]} Be4 {[%emt 0:00:37]} 40. Re1 {[%emt 0:00:44]} Rg2+ {[%emt 0:00:48]} 0-1

[Event "Fagernes Open 2019"]
[Site "Fagernes"]
[Date "2019.04.16"]
[Round "3.28"]
[White "Holand, Per Fredrik"]
[Black "Mansoor, Afras"]
[Result "0-1"]
[ECO "D00"]
[WhiteElo "1849"]
[BlackElo "1965"]
[Annotator "NA"]
[PlyCount "84"]
[EventDate "2019.04.14"]
[EventType "swiss"]
[EventCountry "NOR"]
[SourceTitle "playchess.com"]
[Source "ChessBase"]
[SourceQuality "1"]
[TimeControl "40/7200:3600"]

1. d4 {[%emt 0:00:03]} Nf6 {[%emt 0:07:36]} 2. Bf4 {[%emt 0:00:06]} d5 {[%emt 0:00:05]} 3. e3 {[%emt 0:00:05]} c5 {[%emt 0:00:04]} 4. c3 {[%emt 0:00:06]} Nc6 {[%emt 0:00:08]} 5. Nd2 {[%emt 0:00:06]} Bf5 {[%emt 0:00:17]} 6. Ngf3 {[%emt 0:01:47]} Qb6 {[%emt 0:02:36]} 7. Qb3 {[%emt 0:05:02]} c4 {[%emt 0:00:08]} 8. Qxb6 {[%emt 0:00:28]} axb6 {[%emt 0:00:05]} 9. a3 {[%emt 0:09:11]} b5 {[%emt 0:04:49]} 10. Nh4 {[%emt 0:01:57]} Bd7 {[%emt 0:03:02]} 11. Rc1 {[%emt 0:02:13]} h6 {[%emt 0:10:12]} 12. Nhf3 {[%emt 0:00:44]} g5 {[%emt 0:08:38]} 13. Bg3 {[%emt 0:00:13]} Bg7 {[%emt 0:00:24]} 14. Ne5 {[%emt 0:01:13]} Bf5 {[%emt 0:02:00]} 15. Nxc6 {[%emt 0:02:38]} bxc6 {[%emt 0:00:04]} 16. Be5 {[%emt 0:00:06]} Nh5 {[%emt 0:04:25]} 17. Be2 {[%emt 0:12:42]} Bxe5 {[%emt 0:01:10]} 18. dxe5 {[%emt 0:02:33]} Ng7 {[%emt 0:00:09]} 19. g4 {[%emt 0:00:27]} Bd3 {[%emt 0:11:57]} 20. h4 {[%emt 0:06:46]} Kd7 {[%emt 0:02:16]} 21. Bxd3 {[%emt 0:10:13]} cxd3 {[%emt 0:00:24]} 22. Nf3 {[%emt 0:00:22]} c5 {[%emt 0:05:51]} 23. Kd2 {[%emt 0:03:35]} c4 {[%emt 0:03:23]} 24. hxg5 {[%emt 0:04:02]} hxg5 {[%emt 0:01:23]} 25. Nxg5 {[%emt 0:00:10]} Ne6 {[%emt 0:07:27]} 26. Nxe6 {[%emt 0:00:00]} Kxe6 {[%emt 0:00:45]} 27. f4 {[%emt 0:05:26]} Rag8 {[%emt 0:02:18]} 28. g5 {[%emt 0:09:30]} f6 {[%emt 0:01:03]} 29. exf6 {[%emt 0:03:25]} exf6 {[%emt 0:00:22]} 30. Rxh8 {[%emt 0:01:47]} Rxh8 {[%emt 0:00:19]} 31. Rg1 {[%emt 0:00:06]} Rg8 {[%emt 0:05:46]} 32. b3 {[%emt 0:09:33]} fxg5 {[%emt 0:26:53]} 33. a4 {[%emt 0:02:27]} Ra8 {[%emt 0:01:15]} 34. fxg5 {[%emt 0:00:55]} bxa4 {[%emt 0:00:01]} 35. bxc4 {[%emt 0:08:21]} dxc4 {[%emt 0:00:03]} 36. e4 {[%emt 0:01:38]} a3 {[%emt 0:00:06]} 37. Ke3 {[%emt 0:00:48]} a2 {[%emt 0:00:40]} 38. Ra1 {[%emt 0:00:05]} Ke5 {[%emt 0:00:19]} 39. g6 {[%emt 0:00:30]} Kf6 {[%emt 0:00:17]} 40. Kd4 {[%emt 0:02:16]} Kxg6 {[%emt 0:00:19]} 41. Kxc4 {[%emt 1:00:13]} d2 {[%emt 0:05:58]} 42. Kc5 {[%emt 0:00:00]} Rb8 {[%emt 0:00:53]} 0-1

[Event "Fagernes Open 2019"]
[Site "Fagernes"]
[Date "2019.04.16"]
[Round "3.29"]
[White "Ukkelberg, Oyvind"]
[Black "Unhjem, Bjorn Robert Lovoll"]
[Result "1-0"]
[ECO "A00"]
[WhiteElo "1939"]
[BlackElo "1847"]
[Annotator "NA RC"]
[PlyCount "45"]
[EventDate "2019.04.14"]
[EventType "swiss"]
[EventCountry "NOR"]
[SourceTitle "playchess.com"]
[Source "ChessBase"]
[SourceQuality "1"]
[TimeControl "40/7200:3600"]

1. d3 {[%emt 0:04:02]} e5 {[%emt 0:01:17]} 2. g3 {[%emt 0:00:15]} d5 {[%emt 0:00:48]} 3. Bg2 {[%emt 0:00:13]} Nf6 {[%emt 0:01:23]} 4. Nd2 {[%emt 0:00:44]} Bd6 {[%emt 0:03:40]} 5. h3 {[%emt 0:01:05]} O-O {[%emt 0:01:21]} 6. e4 {[%emt 0:00:28]} c6 {[%emt 0:01:20]} 7. Ngf3 {[%emt 0:00:36]} Be6 {[%emt 0:02:51]} 8. O-O {[%emt 0:01:09]} d4 {[%emt 0:04:51]} 9. Nc4 {[%emt 0:06:16]} Bxc4 {[%emt 0:00:13]} 10. dxc4 {[%emt 0:00:09]} Qa5 {[%emt 0:06:55]} 11. Qe2 {[%emt 0:02:35]} Re8 {[%emt 0:02:28]} 12. a3 {[%emt 0:02:39]} c5 {[%emt 0:01:11]} 13. Bg5 {[%emt 0:02:16]} Nfd7 {[%emt 0:05:16]} 14. h4 {[%emt 0:03:31]} Nf8 {[%emt 0:02:01]} 15. Bh3 {[%emt 0:02:05]} Nc6 {[%emt 0:01:11]} 16. h5 {[%emt 0:04:13]} h6 {[%emt 0:00:25]} 17. Bd2 {[%emt 0:01:17]} Qc7 {[%emt 0:01:09]} 18. Nh4 {[%emt 0:02:27]} Ne6 {[%emt 0:03:10]} 19. Qg4 {[%emt 0:07:13]} Kh8 {[%emt 0:00:45]} 20. Nf5 {[%emt 0:03:18]} Ne7 {[%emt 0:02:33]} 21. Qf3 {[%emt 0:03:33]} Ng8 {[%emt 0:01:37]} 22. Nxd6 {[%emt 0:02:38]} Qxd6 {[%emt 0:00:15]} 23. Qxf7 {[%emt 0:00:41]} 1-0

[Event "Fagernes Open 2019"]
[Site "Fagernes"]
[Date "2019.04.16"]
[Round "3.30"]
[White "Ali, Karim"]
[Black "Lundberg, Alf W."]
[Result "0-1"]
[ECO "A04"]
[WhiteElo "1838"]
[BlackElo "1932"]
[Annotator "NA"]
[PlyCount "80"]
[EventDate "2019.04.14"]
[EventType "swiss"]
[EventCountry "NOR"]
[SourceTitle "playchess.com"]
[Source "ChessBase"]
[SourceQuality "1"]
[TimeControl "40/7200:3600"]

1. e4 c5 2. Nf3 d6 3. d3 Nc6 4. g3 g6 5. Bg2 Bg7 6. O-O e5 7. Re1 Nge7 8. c3 O-O 9. a3 a5 10. a4 h6 11. Na3 Be6 12. Nb5 f5 13. d4 cxd4 14. cxd4 fxe4 15. Rxe4 d5 16. Re1 e4 17. Ne5 Nxe5 18. dxe5 Nc6 19. Qb3 Qd7 20. f4 exf3 21. Bxf3 Nxe5 22. Bg2 d4 23. Qa3 Rad8 24. Bf4 Nc4 25. Qd3 g5 26. Bd2 Nxb2 27. Qe4 Bd5 28. Qxd5+ Qxd5 29. Bxd5+ Rxd5 30. Bxa5 Nxa4 31. Bb4 Rf3 32. Nc7 Rd7 33. Ne6 b5 34. Nxg7 Kxg7 35. Rad1 Rb3 36. Re7+ Rxe7 37. Bxe7 Kf7 38. Bd6 d3 39. Kf1 {[%emt 0:27:47]} Nb2 {[%emt 0:35:39]} 40. Re1 {[%emt 0:00:00]} d2 {[%emt 0:00:00]} 0-1

[Event "Fagernes Open 2019"]
[Site "Fagernes"]
[Date "2019.04.18"]
[Round "4"]
[White "Mansoor, Afras"]
[Black "Akdag, Omer Amir"]
[Result "0-1"]
[ECO "A20"]
[WhiteElo "1965"]
[BlackElo "1901"]
[Annotator "NA"]
[PlyCount "138"]
[EventDate "2019.04.14"]
[EventType "swiss"]
[EventCountry "NOR"]
[SourceTitle "playchess.com"]
[Source "ChessBase"]
[SourceQuality "1"]
[TimeControl "40/7200:3600"]

1. c4 {[%emt 0:01:29]} e5 {[%emt 0:00:11]} 2. g3 {[%emt 0:00:06]} d5 {[%emt 0:00:17]} 3. cxd5 {[%emt 0:00:30]} Qxd5 {[%emt 0:00:07]} 4. Nf3 {[%emt 0:01:11]} Qa5 {[%emt 0:01:48]} 5. Nc3 {[%emt 0:00:43]} Nf6 {[%emt 0:01:29]} 6. Bg2 {[%emt 0:01:32]} c6 {[%emt 0:11:10]} 7. O-O {[%emt 0:03:23]} Be7 {[%emt 0:01:17]} 8. d3 {[%emt 0:19:01]} O-O {[%emt 0:11:14]} 9. Bd2 {[%emt 0:01:32]} Qc7 {[%emt 0:00:47]} 10. Rc1 {[%emt 0:02:13]} Bg4 {[%emt 0:12:10]} 11. b4 {[%emt 0:12:47]} a6 {[%emt 0:04:42]} 12. Qb3 {[%emt 0:02:08]} Nbd7 {[%emt 0:03:40]} 13. Na4 {[%emt 0:05:45]} Be6 {[%emt 0:22:25]} 14. Qb2 {[%emt 0:01:02]} b5 {[%emt 0:02:42]} 15. Nc5 {[%emt 0:11:41]} Nxc5 {[%emt 0:05:24]} 16. bxc5 {[%emt 0:00:58]} Nd7 {[%emt 0:00:40]} 17. d4 {[%emt 0:15:11]} Bf6 {[%emt 0:06:12]} 18. Bc3 {[%emt 0:05:51]} exd4 {[%emt 0:07:29]} 19. Bxd4 {[%emt 0:04:17]} Bd5 {[%emt 0:00:30]} 20. Bxf6 {[%emt 0:05:00]} Nxf6 {[%emt 0:00:01]} 21. Nd4 {[%emt 0:01:06]} Qe5 {[%emt 0:03:02]} 22. Bxd5 {[%emt 0:07:09]} Nxd5 {[%emt 0:00:54]} 23. Qd2 {[%emt 0:00:43]} Qf6 {[%emt 0:00:01]} 24. e4 {[%emt 0:00:35]} Rad8 {[%emt 0:03:19]} 25. e5 {[%emt 0:02:16]} Qg6 {[%emt 0:00:23]} 26. f4 {[%emt 0:00:39]} Ne7 {[%emt 0:00:26]} 27. Rcd1 {[%emt 0:04:22]} Rd5 {[%emt 0:04:46]} 28. f5 {[%emt 0:01:28]} Qh5 {[%emt 0:01:27]} 29. Qf4 {[%emt 0:02:16]} Rfd8 {[%emt 0:00:54]} 30. g4 {[%emt 0:00:03]} Qh6 {[%emt 0:01:48]} 31. g5 {[%emt 0:00:19]} Qh5 {[%emt 0:00:07]} 32. Rd3 {[%emt 0:00:31]} h6 {[%emt 0:01:53]} 33. gxh6 {[%emt 0:00:12]} Qxh6 {[%emt 0:00:10]} 34. Qxh6 {[%emt 0:00:15]} gxh6 {[%emt 0:00:01]} 35. Rg3+ {[%emt 0:00:01]} Kh7 {[%emt 0:00:49]} 36. f6 {[%emt 0:00:28]} Ng6 {[%emt 0:00:27]} 37. Nxc6 {[%emt 0:00:12]} Re8 {[%emt 0:01:11]} 38. Ne7 {[%emt 0:00:55]} Rxe5 {[%emt 0:00:44]} 39. Nxg6 {[%emt 0:00:02]} fxg6 {[%emt 0:00:02]} 40. f7 {[%emt 0:00:04]} Rf8 {[%emt 0:00:16]} 41. c6 {[%emt 0:27:18]} Rc5 {[%emt 0:26:09]} 42. Rf6 {[%emt 0:03:24]} g5 {[%emt 0:00:28]} 43. Rgf3 {[%emt 0:06:04]} Kg7 {[%emt 0:00:42]} 44. Kg2 {[%emt 0:00:57]} a5 {[%emt 0:00:50]} 45. Kg3 {[%emt 0:00:20]} b4 {[%emt 0:00:22]} 46. R6f5 {[%emt 0:08:16]} Rxc6 {[%emt 0:00:37]} 47. Rxa5 {[%emt 0:00:09]} Rxf7 {[%emt 0:00:13]} 48. Rxf7+ {[%emt 0:00:36]} Kxf7 {[%emt 0:00:01]} 49. Rb5 {[%emt 0:00:26]} Rc4 {[%emt 0:01:04]} 50. Rb6 {[%emt 0:00:39]} h5 {[%emt 0:00:02]} 51. h3 {[%emt 0:01:09]} Ke7 {[%emt 0:01:41]} 52. Kf3 {[%emt 0:02:42]} Kf7 {[%emt 0:05:29]} 53. Kg3 {[%emt 0:00:10]} Rd4 {[%emt 0:00:11]} 54. Kf3 {[%emt 0:00:41]} Rf4+ {[%emt 0:09:02]} 55. Kg3 {[%emt 0:00:51]} h4+ {[%emt 0:01:08]} 56. Kg2 {[%emt 0:00:04]} Rc4 {[%emt 0:00:07]} 57. Kf3 {[%emt 0:00:35]} Ke7 {[%emt 0:00:24]} 58. Rb5 {[%emt 0:04:14]} Kf6 {[%emt 0:00:06]} 59. Rb6+ {[%emt 0:00:04]} Ke7 {[%emt 0:02:56]} 60. Rb5 {[%emt 0:00:09]} Rf4+ {[%emt 0:00:35]} 61. Kg2 {[%emt 0:00:02]} g4 {[%emt 0:00:48]} 62. hxg4 {[%emt 0:00:02]} Rxg4+ {[%emt 0:00:01]} 63. Kh3 {[%emt 0:00:01]} Rc4 {[%emt 0:00:28]} 64. Rb6 {[%emt 0:00:08]} Kd7 {[%emt 0:00:05]} 65. Kg2 {[%emt 0:00:27]} Kc7 {[%emt 0:00:12]} 66. Rh6 {[%emt 0:00:02]} Rc2+ {[%emt 0:00:20]} 67. Kf1 {[%emt 0:00:03]} Rxa2 {[%emt 0:00:31]} 68. Rxh4 {[%emt 0:00:03]} b3 {[%emt 0:00:08]} 69. Rb4 {[%emt 0:00:04]} b2 {[%emt 0:00:04]} 0-1

[Event "Fagernes Open 2019"]
[Site "Fagernes"]
[Date "2019.04.18"]
[Round "4"]
[White "Lundberg, Alf W."]
[Black "Shehzad, Shazil"]
[Result "1-0"]
[ECO "B31"]
[WhiteElo "1932"]
[BlackElo "2024"]
[Annotator "NA"]
[PlyCount "61"]
[EventDate "2019.04.14"]
[EventType "swiss"]
[EventCountry "NOR"]
[SourceTitle "playchess.com"]
[Source "ChessBase"]
[SourceQuality "1"]
[TimeControl "40/7200:3600"]

1. e4 {[%emt 0:00:00]} c5 {[%emt 0:00:09]} 2. Qf3 {[%emt 0:00:08]} Nc6 {[%emt 0:01:43]} 3. Qg3 {[%emt 0:00:04]} g6 {[%emt 0:02:11]} 4. h4 {[%emt 0:00:54]} Nf6 {[%emt 0:01:24]} 5. d3 {[%emt 0:00:08]} d5 {[%emt 0:02:17]} 6. f3 {[%emt 0:04:46]} e6 {[%emt 0:05:18]} 7. e5 {[%emt 0:02:05]} Nd7 {[%emt 0:05:05]} 8. f4 {[%emt 0:01:20]} h5 {[%emt 0:01:34]} 9. Nf3 {[%emt 0:04:05]} Nd4 {[%emt 0:01:21]} 10. Nxd4 {[%emt 0:02:45]} cxd4 {[%emt 0:00:06]} 11. Qf2 {[%emt 0:01:12]} Qc7 {[%emt 0:00:11]} 12. b3 {[%emt 0:16:20]} Bb4+ {[%emt 0:01:12]} 13. Bd2 {[%emt 0:00:19]} Qxc2 {[%emt 0:02:05]} 14. Bxb4 {[%emt 0:00:01]} Qc1+ {[%emt 0:00:09]} 15. Ke2 {[%emt 0:00:05]} Qb2+ {[%emt 0:00:06]} 16. Kf3 {[%emt 0:00:02]} Qxa1 {[%emt 0:00:47]} 17. Qc2 {[%emt 0:01:48]} a5 {[%emt 0:05:43]} 18. Bd6 {[%emt 0:20:21]} f5 {[%emt 0:07:19]} 19. Be2 {[%emt 0:01:57]} Kf7 {[%emt 0:01:15]} 20. Rc1 {[%emt 0:01:19]} Ra6 {[%emt 0:01:07]} 21. Na3 {[%emt 0:05:23]} Qc3 {[%emt 0:00:11]} 22. Qd1 {[%emt 0:00:32]} Qxc1 {[%emt 0:07:02]} 23. Qxc1 {[%emt 0:00:06]} Rc6 {[%emt 0:00:05]} 24. Qb2 {[%emt 0:00:42]} b6 {[%emt 0:00:17]} 25. Nb5 {[%emt 0:00:39]} Ba6 {[%emt 0:00:06]} 26. Nxd4 {[%emt 0:00:27]} Rcc8 {[%emt 0:00:17]} 27. Ke3 {[%emt 0:01:18]} Nc5 {[%emt 0:00:15]} 28. Nf3 {[%emt 0:00:35]} Ke8 {[%emt 0:00:13]} 29. Ng5 {[%emt 0:01:24]} Kd7 {[%emt 0:00:04]} 30. d4 {[%emt 0:00:49]} Bxe2 {[%emt 0:00:11]} 31. dxc5 {[%emt 0:00:18]} 1-0

[Event "Fagernes Open 2019"]
[Site "Fagernes"]
[Date "2019.04.18"]
[Round "4"]
[White "Dale, Gunnar Brandshaug"]
[Black "Melaa, Sondre"]
[Result "1/2-1/2"]
[ECO "D36"]
[WhiteElo "1903"]
[BlackElo "1991"]
[Annotator "NA"]
[PlyCount "177"]
[EventDate "2019.04.14"]
[EventType "swiss"]
[EventCountry "NOR"]
[SourceTitle "playchess.com"]
[Source "ChessBase"]
[SourceQuality "1"]
[TimeControl "40/7200:3600"]

1. d4 {[%emt 0:00:08]} d5 {[%emt 0:00:21]} 2. c4 {[%emt 0:00:09]} e6 {[%emt 0:00:06]} 3. Nc3 {[%emt 0:00:05]} Nf6 {[%emt 0:00:07]} 4. Bg5 {[%emt 0:00:19]} Be7 {[%emt 0:00:32]} 5. e3 {[%emt 0:00:22]} Nbd7 {[%emt 0:00:14]} 6. cxd5 {[%emt 0:00:15]} exd5 {[%emt 0:01:29]} 7. Bd3 {[%emt 0:01:08]} c6 {[%emt 0:00:08]} 8. Nf3 {[%emt 0:02:09]} h6 {[%emt 0:00:31]} 9. Bh4 {[%emt 0:00:10]} Nh5 {[%emt 0:00:06]} 10. Bxe7 {[%emt 0:00:19]} Qxe7 {[%emt 0:00:05]} 11. O-O {[%emt 0:00:20]} O-O {[%emt 0:04:41]} 12. Qc2 {[%emt 0:02:10]} Nhf6 {[%emt 0:10:38]} 13. Rab1 {[%emt 0:01:55]} a5 {[%emt 0:01:33]} 14. a3 {[%emt 0:00:49]} Re8 {[%emt 0:05:27]} 15. Rfc1 {[%emt 0:01:21]} h5 {[%emt 0:02:38]} 16. Na4 {[%emt 0:05:46]} g6 {[%emt 0:09:28]} 17. Nc5 {[%emt 0:01:51]} Nxc5 {[%emt 0:04:41]} 18. Qxc5 {[%emt 0:00:27]} Ne4 {[%emt 0:11:49]} 19. Qxe7 {[%emt 0:00:56]} Rxe7 {[%emt 0:00:06]} 20. Bxe4 {[%emt 0:01:57]} Rxe4 {[%emt 0:00:38]} 21. b4 {[%emt 0:03:52]} axb4 {[%emt 0:05:50]} 22. axb4 {[%emt 0:01:14]} Bg4 {[%emt 0:06:54]} 23. Ne5 {[%emt 0:01:56]} Bf5 {[%emt 0:00:11]} 24. Rb3 {[%emt 0:01:44]} f6 {[%emt 0:01:45]} 25. f3 {[%emt 0:01:01]} fxe5 {[%emt 0:00:42]} 26. fxe4 {[%emt 0:00:42]} Bxe4 {[%emt 0:00:09]} 27. Rb2 {[%emt 0:01:23]} exd4 {[%emt 0:01:06]} 28. exd4 {[%emt 0:00:17]} Ra3 {[%emt 0:01:12]} 29. Rd1 {[%emt 0:01:23]} Kf7 {[%emt 0:01:37]} 30. Rdd2 {[%emt 0:01:40]} Ke6 {[%emt 0:11:09]} 31. b5 {[%emt 0:01:27]} Kd6 {[%emt 0:00:35]} 32. bxc6 {[%emt 0:01:46]} bxc6 {[%emt 0:01:04]} 33. Ra2 {[%emt 0:00:46]} Rc3 {[%emt 0:02:36]} 34. Kf2 {[%emt 0:02:26]} c5 {[%emt 0:02:21]} 35. Ra6+ {[%emt 0:00:22]} Kd7 {[%emt 0:00:14]} 36. dxc5 {[%emt 0:02:01]} Rxc5 {[%emt 0:00:14]} 37. Ke3 {[%emt 0:00:49]} Rc6 {[%emt 0:02:31]} 38. Rxc6 {[%emt 0:05:28]} Kxc6 {[%emt 0:00:07]} 39. Kf4 {[%emt 0:00:57]} Kd6 {[%emt 0:02:32]} 40. Ra2 {[%emt 0:01:51]} Ke6 {[%emt 0:00:36]} 41. Ra6+ {[%emt 1:00:23]} Kf7 {[%emt 1:00:56]} 42. g3 {[%emt 0:00:18]} Kg7 {[%emt 0:05:16]} 43. Ke5 {[%emt 0:00:55]} Kf7 {[%emt 0:00:00]} 44. Ra7+ {[%emt 0:00:00]} Kg8 {[%emt 0:00:00]} 45. Kf6 {[%emt 0:00:00]} Bf5 {[%emt 0:00:00]} 46. Ra8+ {[%emt 0:00:00]} Kh7 {[%emt 0:00:00]} 47. Rd8 {[%emt 0:00:00]} Be4 {[%emt 0:00:00]} 48. Kf7 {[%emt 0:00:00]} Kh6 {[%emt 0:00:00]} 49. h4 {[%emt 0:00:00]} Kh7 {[%emt 0:00:00]} 50. Rg8 {[%emt 0:00:00]} d4 {[%emt 0:00:00]} 51. Rg7+ {[%emt 0:00:00]} Kh8 {[%emt 0:00:00]} 52. Rg8+ {[%emt 0:00:00]} Kh7 {[%emt 0:00:00]} 53. Rg7+ {[%emt 0:00:00]} Kh8 {[%emt 0:00:00]} 54. Kf6 {[%emt 0:00:00]} d3 {[%emt 0:00:00]} 55. Re7 {[%emt 0:00:00]} Bf5 {[%emt 0:00:00]} 56. Re8+ {[%emt 0:00:00]} Kh7 {[%emt 0:00:00]} 57. Rd8 {[%emt 0:00:00]} Be4 {[%emt 0:00:00]} 58. Kf7 {[%emt 0:00:00]} Bf5 {[%emt 0:00:00]} 59. Re8 {[%emt 0:00:00]} Bg4 {[%emt 0:00:00]} 60. Rd8 {[%emt 0:00:00]} Bf5 {[%emt 0:00:00]} 61. Kf8 {[%emt 0:00:00]} Kh8 {[%emt 0:00:00]} 62. Rd4 {[%emt 0:00:00]} Kh7 {[%emt 0:00:00]} 63. Kf7 {[%emt 0:00:00]} Kh8 {[%emt 0:00:00]} 64. Kf6 {[%emt 0:00:00]} Kg8 {[%emt 0:00:00]} 65. Rb4 {[%emt 0:00:00]} Kh7 {[%emt 0:00:00]} 66. Ra4 {[%emt 0:00:00]} Kg8 {[%emt 0:00:00]} 67. Rb4 {[%emt 0:00:00]} Kh7 {[%emt 0:00:00]} 68. Kf7 {[%emt 0:00:00]} Bg4 {[%emt 0:00:00]} 69. Rd4 {[%emt 0:00:00]} Bf5 {[%emt 0:00:00]} 70. Rd5 {[%emt 0:00:00]} Be4 {[%emt 0:00:00]} 71. Rd6 {[%emt 0:00:00]} Bf5 {[%emt 0:00:00]} 72. Rd4 {[%emt 0:00:00]} Kh8 {[%emt 0:00:00]} 73. Kf6 {[%emt 0:00:00]} Kh7 {[%emt 0:00:00]} 74. Rd6 {[%emt 0:00:00]} Kh6 {[%emt 0:00:00]} 75. Rd4 {[%emt 0:00:00]} Kh7 {[%emt 0:00:00]} 76. Rd8 {[%emt 0:00:00]} Be4 {[%emt 0:00:00]} 77. Rc8 {[%emt 0:00:00]} Bf5 {[%emt 0:00:04]} 78. Rb8 {[%emt 0:00:00]} Be4 {[%emt 0:00:18]} 79. Re8 {[%emt 0:00:00]} Bf5 {[%emt 0:00:10]} 80. Ra8 {[%emt 0:00:00]} Bg4 {[%emt 0:01:09]} 81. Rd8 {[%emt 0:00:00]} Bf5 {[%emt 0:00:04]} 82. Rf8 {[%emt 0:00:00]} Bg4 {[%emt 0:00:47]} 83. Rd8 {[%emt 0:00:00]} Bf5 {[%emt 0:00:06]} 84. Rb8 {[%emt 0:00:00]} Bg4 {[%emt 0:00:54]} 85. Rb7+ {[%emt 0:00:00]} Kh6 {[%emt 0:00:14]} 86. Rb8 {[%emt 0:00:00]} Kh7 {[%emt 0:00:08]} 87. Rb7+ {[%emt 0:00:00]} Kh6 {[%emt 0:00:11]} 88. Rb8 {[%emt 0:00:00]} Kh7 {[%emt 0:00:35]} 89. Rb7+ {[%emt 0:00:00]} 1/2-1/2